bitfinex-derivatives/quotes_BTCF0:USTF0_20241210
["timestamp","ask_amount","ask_price","bid_price","bid_amount"]
[1733857082863,0.12768013,95123.0,95122.0,0.052676]
[1733857083562,0.002,95123.0,95122.0,0.052676]
[1733857084373,0.005,95123.0,95122.0,0.052676]
[1733857089471,0.12091153,95130.0,95122.0,0.30012]
[1733857089659,0.15711562,95148.0,95140.0,0.052546]
[1733857089858,0.15711562,95155.0,95140.0,0.413346]
[1733857090067,0.19451562,95157.0,95140.0,0.6608]
[1733857090267,0.3608,95175.0,95156.0,0.413337]
[1733857090268,0.15711562,95162.0,95156.0,0.413337]
[1733857090471,0.15711562,95173.0,95156.0,0.413457]
[1733857090662,0.052529,95171.0,95170.0,0.052529]
[1733857091058,0.0374,95174.0,95164.0,0.3608]
[1733857091264,0.15711562,95172.0,95160.0,0.052535]
[1733857091478,0.0374,95174.0,95144.0,0.3608]
[1733857091479,0.3608,95161.0,95144.0,0.3608]
[1733857091670,0.052544,95143.0,95142.0,0.052544]
[1733857091861,0.052544,95143.0,95142.0,0.06317602]
[1733857094174,0.052544,95143.0,95142.0,0.01063202]
[1733857094365,0.052544,95143.0,95135.0,0.3608]
[1733857094366,0.052547,95137.0,95135.0,0.3608]
[1733857094781,6e-05,95137.0,95136.0,0.05412451]
[1733857095970,6e-05,95137.0,95136.0,0.05512451]
[1733857096366,0.00106,95137.0,95136.0,0.05812451]
[1733857097069,0.00106,95137.0,95136.0,0.05912451]
[1733857097274,0.00106,95137.0,95136.0,0.057548]
[1733857097873,6e-05,95137.0,95136.0,0.053548]
[1733857098173,6e-05,95137.0,95136.0,0.054548]
[1733857098878,6e-05,95137.0,95136.0,0.057548]
[1733857099081,6e-05,95137.0,95136.0,0.056548]
[1733857099275,0.052607,95137.0,95136.0,0.004]
[1733857099476,0.052607,95137.0,95136.0,0.001]
[1733857099776,0.052607,95137.0,95136.0,0.053548]
[1733857100876,0.052607,95137.0,95136.0,0.052548]
[1733857101084,0.052607,95137.0,95136.0,0.056548]
[1733857101376,6e-05,95137.0,95136.0,0.056548]
[1733857101576,6e-05,95137.0,95136.0,0.053548]
[1733857101972,6e-05,95137.0,95136.0,0.054548]
[1733857102576,0.053607,95137.0,95136.0,0.005]
[1733857103871,0.053607,95137.0,95136.0,0.007]
[1733857104067,0.053607,95137.0,95128.0,0.42380087]
[1733857104068,0.052552,95129.0,95128.0,0.42380087]
[1733857104876,6e-05,95129.0,95128.0,0.42380087]
[1733857105272,6e-05,95129.0,95128.0,0.42780087]
[1733857105477,6e-05,95129.0,95128.0,0.42880087]
[1733857107075,0.052612,95129.0,95128.0,0.42880087]
[1733857107475,6e-05,95129.0,95128.0,0.42880087]
[1733857107678,0.00106,95129.0,95128.0,0.42480087]
[1733857108180,6e-05,95129.0,95128.0,0.42380087]
[1733857108786,0.00106,95129.0,95128.0,0.42380087]
[1733857108977,0.00106,95129.0,95128.0,0.42480087]
[1733857110283,6e-05,95129.0,95128.0,0.42480087]
[1733857110594,6e-05,95129.0,95128.0,0.42580087]
[1733857110977,6e-05,95129.0,95128.0,0.42780087]
[1733857111177,6e-05,95129.0,95128.0,0.61662369]
[1733857111381,6e-05,95129.0,95128.0,0.42780087]
[1733857111785,6e-05,95129.0,95128.0,0.42580087]
[1733857111984,6e-05,95129.0,95128.0,0.42480087]
[1733857112309,6e-05,95129.0,95128.0,0.42580087]
[1733857113476,6e-05,95129.0,95128.0,0.42480087]
[1733857113675,6e-05,95129.0,95128.0,0.42580087]
[1733857113991,6e-05,95129.0,95128.0,0.61438814]
[1733857114181,6e-05,95129.0,95128.0,0.42580087]
[1733857114981,6e-05,95129.0,95128.0,0.61446976]
[1733857115386,6e-05,95129.0,95128.0,0.61448932]
[1733857115589,6e-05,95129.0,95128.0,0.42580087]
[1733857115783,6e-05,95129.0,95128.0,0.61449324]
[1733857115983,6e-05,95129.0,95128.0,0.42580087]
[1733857117588,6e-05,95129.0,95128.0,0.67725056]
[1733857117791,1e-06,95129.0,95128.0,1.33585037]
[1733857117995,1e-06,95129.0,95128.0,0.78162975]
[1733857118789,1e-06,95129.0,95128.0,0.72153825]
[1733857120692,1e-06,95129.0,95128.0,0.78162775]
[1733857121092,6e-05,95145.0,95128.0,0.78162775]
[1733857121281,6e-05,95145.0,95144.0,0.774144]
[1733857121894,0.15715606,95164.0,95144.0,0.7216]
[1733857122190,0.19245606,95170.0,95169.0,0.05253]
[1733857122390,0.0353,95170.0,95169.0,0.05253]
[1733857122595,0.0353,95170.0,95169.0,0.05265]
[1733857123392,0.0443,95170.0,95169.0,0.05265]
[1733857124810,0.0523,95170.0,95169.0,0.05365]
[1733857124985,0.0523,95170.0,95163.0,0.3608]
[1733857125185,0.052533,95164.0,95163.0,0.413332]
[1733857125385,0.052533,95164.0,95144.0,0.25172002]
[1733857125386,6e-05,95164.0,95154.0,0.3608]
[1733857125592,0.052538,95155.0,95154.0,0.3608]
[1733857125792,0.052598,95155.0,95154.0,0.3608]
[1733857127595,0.060598,95155.0,95154.0,0.3608]
[1733857128098,0.065598,95155.0,95154.0,0.3608]
[1733857129197,0.061598,95155.0,95154.0,0.3608]
[1733857129397,0.00906,95155.0,95154.0,0.413338]
[1733857129593,0.00406,95155.0,95154.0,0.413338]
[1733857129785,0.00706,95155.0,95154.0,0.413338]
[1733857130391,0.00406,95155.0,95154.0,0.413338]
[1733857130598,0.00706,95155.0,95154.0,0.413338]
[1733857132397,0.059598,95155.0,95154.0,0.413338]
[1733857134194,0.059598,95155.0,95150.0,0.01081121]
[1733857134396,0.41334,95151.0,95130.0,0.18879001]
[1733857134597,0.41334,95151.0,95124.0,0.18879001]
[1733857134598,0.052544,95144.0,95124.0,0.18879001]
[1733857134902,0.052604,95144.0,95139.0,0.052546]
[1733857135699,0.052604,95144.0,95143.0,0.00257645]
[1733857136596,0.052604,95144.0,95143.0,0.00409002]
[1733857136791,0.053604,95144.0,95143.0,0.00309002]
[1733857137400,0.053604,95144.0,95143.0,0.00409002]
[1733857137793,0.053604,95144.0,95123.0,0.3608]
[1733857137794,0.00106,95144.0,95123.0,0.3608]
[1733857138002,0.052555,95124.0,95123.0,0.413355]
[1733857138404,0.052615,95124.0,95123.0,0.42418322]
[1733857138700,0.052615,95124.0,95123.0,0.01082822]
[1733857138899,0.052615,95124.0,95108.0,0.19036666]
[1733857138900,0.052563,95109.0,95108.0,0.00157665]
[1733857139304,0.052623,95109.0,95108.0,0.00157665]
[1733857139718,0.052623,95109.0,95108.0,0.01235782]
[1733857139902,0.052623,95109.0,95108.0,0.00157665]
[1733857140100,0.053623,95109.0,95108.0,0.00257665]
[1733857140300,0.053623,95109.0,95108.0,0.06013965]
[1733857140503,0.053623,95109.0,95108.0,0.00757665]
[1733857142002,0.053623,95109.0,95108.0,0.00657665]
[1733857142408,0.21079146,95109.0,95085.0,0.00011746]
[1733857142623,0.052576,95086.0,95085.0,0.00011746]
[1733857142802,0.052636,95086.0,95085.0,0.00011746]
[1733857144911,0.053636,95086.0,95085.0,0.00011746]
[1733857145211,0.053636,95086.0,95085.0,0.00111746]
[1733857145417,0.052636,95086.0,95085.0,0.00111746]
[1733857145605,0.053636,95086.0,95085.0,0.00111746]
[1733857150304,0.00106,95086.0,95085.0,0.00111746]
[1733857150812,0.052565,95106.0,95105.0,0.052564]
[1733857151202,0.39977738,95129.0,95105.0,0.00012]
[1733857151514,0.052559,95117.0,95115.0,0.052559]
[1733857151710,0.052562,95111.0,95109.0,0.3608]
[1733857151911,0.052572,95093.0,95091.0,0.052573]
[1733857152214,0.052572,95093.0,95089.0,0.3608]
[1733857152215,0.05257,95096.0,95094.0,0.052571]
[1733857152815,0.004,95106.0,95101.0,0.052566]
[1733857152816,0.052567,95102.0,95101.0,0.052566]
[1733857153008,0.052567,95102.0,95101.0,0.413366]
[1733857153314,0.052567,95102.0,95101.0,0.36092]
[1733857154825,6e-05,95110.0,95109.0,0.052563]
[1733857155219,6e-05,95110.0,95109.0,0.052683]
[1733857155407,6e-05,95110.0,95109.0,0.413483]
[1733857156020,0.00506,95110.0,95109.0,0.413483]
[1733857156328,0.00506,95110.0,95109.0,0.00012]
[1733857156329,0.063622,95110.0,95109.0,0.00012]
[1733857156516,0.063622,95110.0,95109.0,0.413483]
[1733857156815,0.01106,95110.0,95109.0,0.413483]
[1733857163112,0.01106,95110.0,95109.0,0.36092]
[1733857163113,0.063622,95110.0,95109.0,0.36092]
[1733857163713,0.063622,95110.0,95109.0,0.00012]
[1733857168623,0.063622,95110.0,95109.0,0.052683]
[1733857169621,0.063622,95110.0,95109.0,0.00012]
[1733857170024,0.063622,95110.0,95109.0,0.052683]
[1733857170225,0.01106,95110.0,95109.0,0.052683]
[1733857170729,0.01106,95110.0,95109.0,0.42440945]
[1733857170927,0.12555207,95140.0,95109.0,0.92294584]
[1733857171128,0.01087322,95141.0,95138.0,0.413347]
[1733857171129,0.0541242,95139.0,95138.0,0.413347]
[1733857171327,0.0015772,95139.0,95138.0,0.413467]
[1733857171923,0.052535,95160.0,95159.0,0.052535]
[1733857172228,0.052535,95160.0,95159.0,0.00012]
[1733857173929,0.058535,95160.0,95159.0,0.00112]
[1733857174321,0.067535,95160.0,95159.0,0.00212]
[1733857175830,0.015,95160.0,95159.0,0.00212]
[1733857179622,0.067535,95160.0,95159.0,0.00212]
[1733857183528,0.067535,95160.0,95147.0,0.3608]
[1733857183732,0.067535,95160.0,95138.0,0.3608]
[1733857183733,0.052546,95139.0,95138.0,0.00152]
[1733857183927,0.3608,95139.0,95127.0,0.01081626]
[1733857184229,6e-05,95128.0,95118.0,0.05413487]
[1733857184432,6e-05,95128.0,95118.0,0.00157687]
[1733857184632,6e-05,95119.0,95118.0,0.00157687]
[1733857185337,6e-05,95119.0,95118.0,0.01218953]
[1733857185633,6e-05,95119.0,95118.0,0.00157687]
[1733857186228,0.001,95139.0,95137.0,0.052547]
[1733857186429,0.052547,95139.0,95137.0,0.052547]
[1733857186628,0.052547,95139.0,95138.0,0.00012]
[1733857187037,0.413347,95139.0,95138.0,0.00012]
[1733857187639,0.414347,95139.0,95138.0,0.00012]
[1733857187838,0.416347,95139.0,95138.0,0.00012]
[1733857188141,0.415347,95139.0,95138.0,0.00012]
[1733857188336,0.416347,95139.0,95138.0,0.00012]
[1733857189430,0.418347,95139.0,95138.0,0.00012]
[1733857190140,0.414347,95139.0,95138.0,0.00012]
[1733857190330,0.415347,95139.0,95138.0,0.00012]
[1733857190636,0.417347,95139.0,95138.0,0.00012]
[1733857191939,0.417347,95139.0,95138.0,0.052667]
[1733857192136,0.004,95139.0,95138.0,0.413467]
[1733857192326,0.002,95139.0,95138.0,0.413467]
[1733857192529,0.004,95139.0,95138.0,0.413467]
[1733857193236,0.002,95139.0,95138.0,0.413467]
[1733857193429,0.006,95139.0,95138.0,0.42417791]
[1733857195335,0.058546,95139.0,95138.0,0.06337791]
[1733857196837,0.055546,95139.0,95138.0,0.06337791]
[1733857197040,0.055546,95139.0,95138.0,0.37163091]
[1733857197237,0.003,95139.0,95138.0,0.42417791]
[1733857197737,0.055546,95139.0,95138.0,0.42417791]
[1733857198133,0.054546,95139.0,95138.0,0.42417791]
[1733857198340,0.055546,95139.0,95138.0,0.42417791]
[1733857198541,0.003,95139.0,95138.0,0.42417791]
[1733857198745,0.09392188,95155.0,95146.0,0.052542]
[1733857198930,0.09392188,95155.0,95138.0,0.67163091]
[1733857198931,0.052537,95159.0,95158.0,0.052536]
[1733857199338,0.052537,95159.0,95158.0,0.052656]
[1733857199634,0.052533,95164.0,95163.0,0.052533]
[1733857200036,0.052533,95164.0,95163.0,0.052653]
[1733857200439,0.09417975,95164.0,95163.0,0.413453]
[1733857200746,0.09417975,95176.0,95163.0,0.413453]
[1733857200937,0.052533,95164.0,95163.0,0.36092]
[1733857201133,0.052539,95153.0,95139.0,0.00152]
[1733857201331,0.51785695,95153.0,95136.0,0.01052635]
[1733857201637,0.052552,95129.0,95108.0,0.052563]
[1733857201835,0.09426474,95114.0,95108.0,0.01059137]
[1733857202038,0.12568502,95124.0,95113.0,0.3608]
[1733857202235,0.12568502,95124.0,95102.0,0.052566]
[1733857202236,0.09425614,95123.0,95122.0,0.052556]
[1733857202436,0.05255,95134.0,95123.0,0.00012]
[1733857202635,0.05255,95134.0,95133.0,0.05255]
[1733857202935,0.05266639,95134.0,95133.0,0.05267]
[1733857203141,0.05266639,95134.0,95133.0,0.00012]
[1733857203335,0.53915141,95134.0,95133.0,0.00012]
[1733857203548,0.41346639,95134.0,95133.0,0.00012]
[1733857204136,0.05256,95114.0,95113.0,0.01088128]
[1733857204336,0.05256,95114.0,95112.0,0.052561]
[1733857204536,0.05256,95114.0,95106.0,0.3608]
[1733857204537,0.052558,95118.0,95108.0,0.052563]
[1733857204748,6e-05,95113.0,95112.0,0.052561]
[1733857206336,6e-05,95113.0,95112.0,0.054561]
[1733857207138,0.00106,95113.0,95112.0,0.055561]
[1733857207363,0.3608,95126.0,95125.0,0.052554]
[1733857207937,0.05255,95133.0,95131.0,0.052551]
[1733857208137,0.052554,95126.0,95122.0,0.052556]
[1733857208346,0.052554,95125.0,95123.0,0.052555]
[1733857208937,0.052557,95120.0,95115.0,0.3608]
[1733857209145,0.052556,95122.0,95115.0,0.3608]
[1733857209448,0.14677892,95122.0,95120.0,0.052557]
[1733857209643,0.14677892,95122.0,95115.0,0.3608]
[1733857209644,0.09422292,95124.0,95123.0,0.052555]
[1733857209839,0.09422292,95125.0,95123.0,0.052555]
[1733857210036,0.09426326,95125.0,95123.0,0.052675]
[1733857210241,0.052554,95125.0,95123.0,0.052675]
[1733857211148,0.09427567,95124.0,95123.0,0.053675]
[1733857211352,0.052554,95125.0,95123.0,0.053675]
[1733857211745,0.052554,95125.0,95124.0,0.00012]
[1733857212648,0.17821834,95125.0,95124.0,0.00012]
[1733857213243,0.052567,95102.0,95101.0,0.18840632]
[1733857213442,0.774167,95102.0,95101.0,0.00012398]
[1733857213748,0.77432088,95102.0,95101.0,0.00012398]
[1733857214052,0.77432088,95102.0,95070.0,0.034]
[1733857214053,0.052573,95092.0,95070.0,0.034]
[1733857214251,0.052568,95101.0,95070.0,0.034]
[1733857214252,0.3608,95078.0,95070.0,0.034]
[1733857214448,6e-05,95071.0,95070.0,0.086584]
[1733857214653,0.09431903,95089.0,95070.0,0.09700426]
[1733857214944,0.09431903,95100.0,95098.0,0.052569]
[1733857215150,0.45521291,95102.0,95098.0,0.052569]
[1733857215650,0.41346088,95102.0,95101.0,0.003]
[1733857216345,0.36089388,95102.0,95098.0,0.052569]
[1733857216544,0.052568,95099.0,95089.0,0.3608]
[1733857216745,0.052578,95083.0,95082.0,0.052578]
[1733857217050,6e-05,95083.0,95082.0,0.052578]
[1733857217248,6e-05,95083.0,95082.0,0.050818]
[1733857218549,6e-05,95083.0,95082.0,0.06140943]
[1733857218946,6e-05,95083.0,95082.0,0.06440943]
[1733857219147,0.00106,95083.0,95082.0,0.06440943]
[1733857220250,0.053637,95083.0,95082.0,0.06440943]
[1733857220753,0.36186,95083.0,95082.0,0.06440943]
[1733857220946,0.00106,95083.0,95082.0,0.06440943]
[1733857221750,0.053637,95083.0,95082.0,0.06440943]
[1733857222555,0.053637,95083.0,95082.0,0.01359143]
[1733857222759,0.053637,95083.0,95082.0,0.06616943]
[1733857223856,0.00106,95083.0,95082.0,0.06616943]
[1733857224661,9.388e-05,95102.0,95082.0,0.06616943]
[1733857224662,0.052569,95099.0,95098.0,0.052569]
[1733857225055,9.388e-05,95102.0,95101.0,0.052567]
[1733857225557,8.8e-07,95102.0,95101.0,0.052687]
[1733857225758,0.052547,95138.0,95101.0,0.352687]
[1733857226055,0.00157697,95166.0,95138.0,0.052547]
[1733857226056,0.052547,95139.0,95138.0,0.052547]
[1733857226264,0.052547,95139.0,95137.0,0.00012]
[1733857226454,0.3608,95138.0,95137.0,0.00012]
[1733857226653,0.36086,95138.0,95137.0,0.00012]
[1733857226958,0.36094806,95138.0,95122.0,0.052556]
[1733857227153,0.413354,95127.0,95125.0,0.052554]
[1733857228955,0.052557,95120.0,95118.0,0.01081308]
[1733857229261,0.052557,95120.0,95116.0,0.00157696]
[1733857229559,0.3618,95127.0,95116.0,0.01212101]
[1733857229758,0.001,95127.0,95125.0,0.052554]
[1733857230160,0.001,95127.0,95126.0,0.0339]
[1733857230952,8.806e-05,95138.0,95132.0,0.05255]
[1733857231266,0.052553,95127.0,95126.0,0.01060785]
[1733857231566,0.052553,95127.0,95124.0,0.052554]
[1733857231763,0.052553,95127.0,95117.0,0.3608]
[1733857231960,6e-05,95125.0,95124.0,0.052555]
[1733857233068,6e-05,95125.0,95124.0,0.053555]
[1733857237570,6e-05,95125.0,95124.0,0.05684062]
[1733857237759,8.806e-05,95138.0,95137.0,0.050847]
[1733857238067,8.806e-05,95138.0,95137.0,0.41493229]
[1733857238260,8.806e-05,95138.0,95137.0,0.411647]
[1733857239064,0.00408806,95138.0,95137.0,0.411647]
[1733857240165,0.00408806,95138.0,95117.0,0.03137861]
[1733857240466,0.052617,95119.0,95117.0,0.01051024]
[1733857240869,0.05256,95115.0,95113.0,0.052561]
[1733857241168,6e-05,95114.0,95113.0,0.052561]
[1733857241558,6e-05,95114.0,95113.0,0.01074664]
[1733857241763,0.052565,95105.0,95089.0,0.3608]
[1733857242073,0.45493022,95105.0,95080.0,0.3608]
[1733857242281,0.052576,95086.0,95073.0,0.052582]
[1733857242456,0.3608,95087.0,95073.0,0.052582]
[1733857242457,0.052582,95075.0,95073.0,0.052582]
[1733857242768,6e-05,95074.0,95073.0,0.0633786]
[1733857244263,6e-05,95074.0,95073.0,0.0683786]
[1733857244966,6e-05,95074.0,95073.0,0.0693786]
[1733857245465,0.00106,95074.0,95073.0,0.0693786]
[1733857246165,0.00106,95074.0,95073.0,0.006]
[1733857247559,0.00118317,95074.0,95073.0,0.006]
[1733857247764,0.36198317,95074.0,95073.0,0.006]
[1733857248565,0.45590151,95074.0,95073.0,0.006]
[1733857248866,0.36198317,95074.0,95073.0,0.006]
[1733857249167,0.36298317,95074.0,95073.0,0.005]
[1733857249378,0.45689499,95074.0,95073.0,0.005]
[1733857249666,0.36298317,95074.0,95073.0,0.005]
[1733857250060,0.052589,95062.0,95061.0,0.00157785]
[1733857250262,0.413389,95062.0,95061.0,0.00157785]
[1733857250472,0.413449,95062.0,95061.0,0.00157785]
[1733857251158,0.413449,95062.0,95061.0,0.00257785]
[1733857251361,0.413449,95062.0,95061.0,0.00357785]
[1733857251971,6e-05,95062.0,95061.0,0.002]
[1733857256576,0.052649,95062.0,95061.0,0.002]
[1733857258073,0.052649,95062.0,95061.0,0.0001104]
[1733857258272,0.052649,95062.0,95031.0,0.3608]
[1733857258273,0.052599,95043.0,95042.0,0.02280333]
[1733857258472,0.052599,95043.0,95042.0,0.01080048]
[1733857258473,0.413399,95043.0,95042.0,0.01080048]
[1733857258779,0.413399,95043.0,95042.0,0.0526]
[1733857258780,0.413459,95043.0,95042.0,0.0526]
[1733857258969,0.413459,95043.0,95035.0,0.0344]
[1733857258970,0.052601,95041.0,95035.0,0.0344]
[1733857259472,0.052661,95041.0,95035.0,0.0344]
[1733857259885,0.052661,95041.0,95040.0,0.01226479]
[1733857260170,0.053661,95041.0,95040.0,0.00657813]
[1733857261072,0.05374048,95041.0,95040.0,0.00657813]
[1733857261467,0.05474048,95041.0,95040.0,0.00657813]
[1733857262071,0.05474048,95041.0,95040.0,0.005]
[1733857262276,0.052604,95035.0,95034.0,0.00044]
[1733857262671,0.052664,95035.0,95034.0,0.00044]
[1733857262867,0.36086,95035.0,95033.0,0.052605]
[1733857263068,0.052604,95034.0,95033.0,0.052605]
[1733857263280,0.052608,95029.0,95028.0,0.052608]
[1733857263574,0.052668,95029.0,95028.0,0.052608]
[1733857264169,0.05261,95024.0,95023.0,0.0636365]
[1733857264369,0.02875874,95024.0,95023.0,0.05273626]
[1733857264570,0.05267,95024.0,95023.0,0.00012626]
[1733857265078,0.41347,95024.0,95023.0,0.00012626]
[1733857265776,0.42606376,95024.0,95023.0,0.00312626]
[1733857265982,0.36286,95024.0,95023.0,0.05573626]
[1733857266179,0.00206,95024.0,95023.0,0.05573626]
[1733857266478,0.05367,95024.0,95023.0,0.00012626]
[1733857266680,0.05367,95024.0,95023.0,0.00312626]
[1733857267774,0.05367,95024.0,95023.0,0.05573626]
[1733857267979,0.00106,95024.0,95023.0,0.05273626]
[1733857268170,6e-05,95024.0,95023.0,0.41653626]
[1733857268481,0.00106,95024.0,95023.0,0.41653626]
[1733857268681,0.3608,95049.0,95037.0,0.052603]
[1733857268979,0.052602,95038.0,95037.0,0.052603]
[1733857270171,0.052602,95038.0,95037.0,0.05589195]
[1733857270482,0.3608,95049.0,95031.0,0.3608]
[1733857270483,0.0526,95042.0,95040.0,0.052601]
[1733857270884,0.05268048,95041.0,95040.0,0.052601]
[1733857271380,0.05268048,95041.0,95040.0,0.05588994]
[1733857271585,7.948e-05,95041.0,95040.0,0.05588994]
[1733857271771,7.948e-05,95041.0,95040.0,0.06645076]
[1733857271978,0.00207948,95041.0,95040.0,0.06645076]
[1733857272167,0.00207948,95041.0,95040.0,0.10245076]
[1733857272583,0.00207948,95041.0,95040.0,0.04984976]
[1733857272584,0.05468048,95041.0,95040.0,0.04984976]
[1733857272774,0.05368048,95041.0,95040.0,0.04984976]
[1733857273279,0.05368048,95041.0,95040.0,0.10245076]
[1733857273783,0.05368048,95041.0,95040.0,0.04984976]
[1733857274178,0.05368048,95041.0,95040.0,0.03928894]
[1733857274379,0.05368048,95041.0,95040.0,0.03728894]
[1733857274580,0.05368048,95041.0,95040.0,0.03828894]
[1733857275579,0.05368048,95041.0,95040.0,0.00428894]
[1733857275580,0.50828614,95041.0,95040.0,0.00428894]
[1733857275885,0.50828614,95041.0,95040.0,0.001]
[1733857276071,0.41448048,95041.0,95040.0,0.001]
[1733857276276,0.41448048,95041.0,95040.0,0.00428911]
[1733857276684,0.41448048,95041.0,95040.0,0.05689011]
[1733857276875,0.36187948,95041.0,95040.0,0.05689011]
[1733857277788,0.00107948,95041.0,95040.0,0.05689011]
[1733857278581,0.00107948,95041.0,95040.0,0.04640011]
[1733857279472,0.0942746,95054.0,95040.0,0.40720011]
[1733857279678,0.0942746,95059.0,95058.0,0.052591]
[1733857279981,0.0942746,95061.0,95053.0,0.00012]
[1733857280182,0.09428062,95065.0,95060.0,0.3608]
[1733857280385,0.09428062,95066.0,95060.0,0.36092]
[1733857280682,0.3608,95068.0,95067.0,0.052586]
[1733857280683,0.413386,95068.0,95067.0,0.052586]
[1733857280887,0.41349469,95068.0,95067.0,0.052586]
[1733857281077,0.41349469,95068.0,95067.0,0.052706]
[1733857281885,0.42049469,95068.0,95067.0,0.052706]
[1733857282185,0.42949469,95068.0,95067.0,0.052706]
[1733857283491,0.42949469,95068.0,95067.0,0.00012]
[1733857283996,0.58583746,95068.0,95067.0,0.00012]
[1733857284194,0.48064175,95068.0,95067.0,6.94e-06]
[1733857284398,0.42805575,95068.0,95044.0,0.05417713]
[1733857284689,0.052598,95045.0,95044.0,0.00157813]
[1733857284890,0.052598,95045.0,95044.0,0.05417713]
[1733857285991,0.052598,95045.0,95044.0,0.00157813]
[1733857286387,0.052609,95025.0,95024.0,0.052609]
[1733857286590,0.052609,95025.0,95023.0,0.00012626]
[1733857286788,9.338e-05,95024.0,95023.0,0.00012626]
[1733857287993,9.338e-05,95024.0,95023.0,0.00312626]
[1733857288185,0.00109338,95024.0,95023.0,0.00312626]
[1733857288791,0.3608,95031.0,95030.0,0.052607]
[1733857288999,0.052602,95038.0,95029.0,0.3608]
[1733857289188,0.3608,95045.0,95043.0,0.052599]
[1733857289591,0.3608,95045.0,95044.0,0.00012]
[1733857289903,0.36089689,95045.0,95044.0,0.00012]
[1733857290093,9.689e-05,95045.0,95044.0,0.00012]
[1733857290690,0.00209689,95045.0,95044.0,0.00012]
[1733857291190,9.689e-05,95045.0,95044.0,0.00012]
[1733857291492,0.00409689,95045.0,95044.0,0.00012]
[1733857291688,0.09433177,95065.0,95062.0,0.052589]
[1733857291892,0.09433177,95066.0,95062.0,0.052589]
[1733857292093,0.052586,95068.0,95066.0,0.052587]
[1733857294594,0.15591377,95075.0,95074.0,0.00012]
[1733857295398,0.061582,95075.0,95074.0,0.00012]
[1733857295590,0.069582,95075.0,95074.0,0.00112]
[1733857296096,0.069582,95075.0,95048.0,0.3608]
[1733857296097,0.017,95075.0,95048.0,0.3608]
[1733857296405,0.052656,95050.0,95049.0,0.06496916]
[1733857297690,0.00306,95050.0,95049.0,0.06496916]
[1733857297891,0.00306,95050.0,95049.0,0.09826916]
[1733857298686,0.45512018,95067.0,95066.0,0.052587]
[1733857299003,0.09432018,95075.0,95074.0,0.052582]
[1733857299204,0.09432018,95079.0,95074.0,0.3608]
[1733857299392,0.0015783,95088.0,95087.0,0.052575]
[1733857299592,0.0015783,95088.0,95087.0,0.413025]
[1733857300400,0.12567707,95103.0,95087.0,0.413025]
[1733857300401,0.0942272,95103.0,95101.0,0.052567]
[1733857300600,0.052566,95103.0,95101.0,0.052567]
[1733857300792,0.052566,95103.0,95102.0,0.00012]
[1733857302296,0.45489658,95105.0,95102.0,0.00012]
[1733857302495,0.3608,95105.0,95103.0,0.052566]
[1733857302694,0.3608,95105.0,95102.0,0.00112]
[1733857302695,0.09409658,95116.0,95104.0,0.00012]
[1733857302894,0.052559,95117.0,95115.0,0.05256]
[1733857303198,0.3608,95122.0,95116.0,0.00012]
[1733857303199,0.45489658,95122.0,95116.0,0.00012]
[1733857303407,0.413356,95122.0,95119.0,0.052557]
[1733857303707,0.413356,95122.0,95121.0,0.00012]
[1733857304392,0.422356,95122.0,95121.0,0.00012]
[1733857305198,0.51633699,95122.0,95121.0,0.00012]
[1733857305400,0.431356,95122.0,95121.0,0.00112]
[1733857305591,0.52523957,95122.0,95121.0,0.00112]
[1733857306196,0.431356,95122.0,95121.0,0.00112]
[1733857306497,0.052569,95098.0,95095.0,0.052571]
[1733857306692,0.052569,95098.0,95090.0,0.00010648]
[1733857306893,6e-05,95097.0,95096.0,0.05257]
[1733857307097,6e-05,95097.0,95096.0,0.41337]
[1733857308109,6e-05,95097.0,95090.0,0.01079795]
[1733857308110,0.052573,95091.0,95090.0,0.00010648]
[1733857308606,0.052633,95091.0,95090.0,0.00010648]
[1733857309698,0.052633,95091.0,95090.0,0.00110648]
[1733857309699,0.057633,95091.0,95090.0,0.00110648]
[1733857310010,0.061633,95091.0,95090.0,0.00110648]
[1733857310303,0.056633,95091.0,95090.0,0.00010648]
[1733857311798,0.061633,95091.0,95090.0,0.00100048]
[1733857311999,0.052595,95051.0,95049.0,0.052596]
[1733857312200,0.3608,95066.0,95047.0,0.3608]
[1733857312511,0.052597,95049.0,95048.0,0.052596]
[1733857312804,0.052599,95044.0,95043.0,0.0318]
[1733857313013,0.052601,95041.0,95040.0,0.00157821]
[1733857313195,0.052601,95041.0,95040.0,0.05417921]
[1733857313397,0.052661,95041.0,95040.0,0.05417921]
[1733857313809,6e-05,95041.0,95040.0,0.05417921]
[1733857314903,6e-05,95041.0,95040.0,0.06461238]
[1733857315204,6e-05,95041.0,95040.0,0.42541238]
[1733857315704,0.00106,95041.0,95040.0,0.42841238]
[1733857316205,0.00106,95041.0,95040.0,0.43041238]
[1733857317111,0.00010648,95044.0,95043.0,0.052599]
[1733857317310,0.3608,95069.0,95068.0,0.052586]
[1733857317702,0.00157843,95075.0,95074.0,0.052582]
[1733857318209,0.052576,95085.0,95074.0,0.00012]
[1733857318510,0.3608,95099.0,95097.0,0.05257]
[1733857318705,0.3608,95099.0,95090.0,0.052573]
[1733857318906,0.3608,95099.0,95098.0,0.00012]
[1733857319802,0.3608,95099.0,95098.0,0.052689]
[1733857320000,0.421368,95099.0,95098.0,0.052689]
[1733857320912,0.3688,95099.0,95098.0,0.052689]
[1733857321118,0.008,95099.0,95098.0,0.413489]
[1733857321411,0.014,95099.0,95098.0,0.413489]
[1733857321604,0.00157778,95112.0,95098.0,0.36092]
[1733857321809,0.00157778,95112.0,95111.0,0.052562]
[1733857322315,0.00157778,95112.0,95111.0,0.052682]
[1733857322808,0.01557778,95112.0,95111.0,0.052682]
[1733857323310,0.00757778,95112.0,95111.0,0.053682]
[1733857323504,0.01657778,95112.0,95111.0,0.06430547]
[1733857324411,0.01057778,95112.0,95111.0,0.06430547]
[1733857324604,0.01857778,95112.0,95111.0,0.06530547]
[1733857325115,0.00957778,95112.0,95111.0,0.06430547]